Cogmind - Beta 16 *** ADVENTURER MODE // 2025.11.26 @ 21:39:25 Player: OrcaCora Result: Destroyed by G3-RMW(R) with Subdweller Machine Gun Performance ------------- Evolutions (0) 0 Regions Visited (2) 400 Robots Destroyed (21) 105 Value Destroyed (678) 678 Prototype IDs (6) 120 Alien Tech Used (0) 0 Bonus (0) 0 TOTAL SCORE: 1303 Bonus ------- None Cogmind --------- Core Integrity 0/250 Matter 264/300 Energy 250/250 System Corruption 0% Temperature Cool (0) Movement Treading (240) Ox1 Location -10/Subcaves Parts ------- > --- POWER (1) -------- Ion Engine > --- PROPULSION (2) --- Light Treads Light Treads > --- UTILITY (2) ------ Large Storage Unit Large Storage Unit > --- WEAPON (2) ------- Beam Cannon Battle Rifle > --- INVENTORY (15) --- Light Ion Engine Light Treads Aluminum Leg Aluminum Leg Compact Wheel Compact Wheel Large Storage Unit Assault Rifle Assault Rifle Assault Rifle Assault Rifle Peak State ------------ > --- POWER ------------ Light Ion Engine > --- PROPULSION ------- Light Treads Light Treads > --- UTILITY ---------- Large Storage Unit Large Storage Unit > --- WEAPON ----------- Beam Cannon Subdweller Machine Gun > --- INVENTORY -------- Ion Engine Light Ion Engine Light Treads Light Treads Aluminum Leg Aluminum Leg Compact Wheel Compact Wheel Large Storage Unit Assault Rifle Assault Rifle Assault Rifle [Rating: 9] Favorites ----------- Power Ion Engine Engine Ion Engine Propulsion Light Treads Treads Light Treads Wheel Compact Wheel Utility Large Storage Unit Storage Large Storage Unit Processor Signal Interpreter Weapon Assault Rifle Energy Gun Medium Laser Energy Cannon Beam Cannon Ballistic Gun Assault Rifle Build | -11 -10 -10 ------- Run | Yrd Mat Sub Slots Evolved . | . . . Power . | . . . Propulsion . | . . . Utility . | . . . Weapon . | . . . Parts Attached 21 | 7 11 3 Power 2 | 1 1 . Engine 2 | 1 1 . Core . | . . . Reactor . | . . . Propulsion 4 | 3 1 . Treads 3 | 2 1 . Leg . | . . . Wheel 1 | 1 . . Hover . | . . . Flight . | . . . Utility 6 | 1 5 . Device . | . . . Storage 5 | 1 4 . Processor 1 | . 1 . Hackware . | . . . Protection . | . . . Artifact . | . . . Weapon 9 | 2 4 3 Energy Gun 2 | 2 . . Energy Cannon 1 | . 1 . Ballistic Gun 6 | . 3 3 Ballistic Cannon . | . . . Launcher . | . . . Special Weapon . | . . . Impact Weapon . | . . . Slashing Weapon . | . . . Piercing Weapon . | . . . Special Melee Weapon . | . . . Unidentified Prototypes . | . . . Parts Lost 2 | . . 2 Power 1 | . . 1 Propulsion 1 | . . 1 Utility . | . . . Weapon . | . . . Highest Loss Streak 2 | . . 2 To Critical Strikes . | . . . Average Backups 9 | 5 8 11 Power 1 | . 1 1 Propulsion 4 | 3 4 5 Utility . | . . 1 Weapon 2 | . 1 3 Tool/Special . | . . . Unused Backups 9 | . 1 8 Power 1 | . . 1 Propulsion 5 | . 1 4 Utility 1 | . . 1 Weapon 2 | . . 2 Tool/Special . | . . . Average Slot Usage (%) 97 | . 97 96 Engine 13 | . 13 13 Treads 27 | . 27 26 Storage 27 | . 27 28 Energy Gun 4 | . 6 . Energy Cannon 6 | . 3 14 Ballistic Gun 15 | . 16 12 Peak Build Rating 9 | 6 8 9 Average Rating 7 | 3 7 8 On Entrance 4 | . 6 8 Avg Prop Armor Cover (%) . | . . . Naked Turns . | . . . Heaviest Build 50 | 14 49 50 Greatest Support 40 | 40 40 40 Greatest Overweight (x) 2 | . 2 2 Average Overweight (x) . | . . 1 Largest Inventory Capacity 15 | 8 15 15 Average Capacity 14 | 7 14 15 Most Carried 13 | 8 12 13 Average Carried 9 | 5 8 11 Final Capacity 15 | 8 15 15 Final Carried 12 | 6 12 11 Class Distribution -------------------- 100% | Mutant Dominant Class ---------------- Mutant | -10/Materials Mutant | -10/Subcaves Resources | -11 -10 -10 ----------- Run | Yrd Mat Sub Matter Collected 652 | 227 300 125 Remotely . | . . . Salvage Created 886 | . 655 231 Parts 34 | . 19 15 Haulers Intercepted 2 | . 2 . Recyclers Shooed . | . . . Parts Field Recycled . | . . . Retrieved Matter . | . . . Parts Self-Destructed 6 | . . 6 Prevented . | . . . Parts Restored . | . . . Kills | -11 -10 -10 ------- Run | Yrd Mat Sub Combat Hostiles Destroyed 16 | . 11 5 Guns 13 | . 11 2 Cannons 3 | . . 3 Classes Destroyed 4 | . 3 1 Hauler 2 | . 2 . Watcher 3 | . 3 . Grunt 11 | . 11 . Subdweller 5 | . . 5 Best Kill Streak 3 | . 3 2 Combat Bots Only 3 | . 3 2 Max Kills in Single Turn 1 | . 1 1 Gunslinging . | . . . Exploded . | . . . Melee . | . . . Uniques/NPCs Destroyed . | . . . Combat | -11 -10 -10 -------- Run | Yrd Mat Sub Hostile Shots Fired 93 | . 63 30 Missed 20 | . 11 9 Hits 73 | . 52 21 Projectile 73 | . 52 21 Critical Strikes 1 | . 1 . Damage Taken 910 | . 583 327 Core 251 | . 203 48 Absorbed by Shields . | . . . Ignored by Resistances 245 | . 150 95 Regen/Repaired (Parts) 167 | . 167 . Core Remaining (%) 100 | 100 . . Volleys Fired 96 | . 60 36 Largest 2 | . 2 2 Hottest 100 | . 100 90 Shots Fired 163 | . 111 52 Gun 127 | . 111 16 Cannon 36 | . . 36 Launcher . | . . . Special . | . . . Kinetic 77 | . 61 16 Thermal 86 | . 50 36 Explosive . | . . . Electromagnetic . | . . . Robot Hit Streak 31 | . 31 29 Robot Miss Streak 3 | . 3 1 Penetration Max . | . . . Secondary Targets 2 | . 2 . Max Gunslinging Chain 1 | . 1 . Shots Hit Robots 120 | . 87 33 Core Hits 43 | . 33 10 Critical Kills 1 | . 1 . Critical Parts Destroyed . | . . . Critical Strikes 4 | . 4 . Burn 3 | . 3 . Destroy 1 | . 1 . Melee Attacks . | . . . Impact . | . . . Slashing . | . . . Piercing . | . . . Sneak Attacks . | . . . Combat Hostiles . | . . . Follow-up Attacks . | . . . Damage Inflicted 1676 | . 1140 536 Guns 1318 | . 1132 186 Cannons 350 | . . 350 Explosions . | . . . Melee . | . . . Ramming 8 | . 8 . Kinetic 768 | . 582 186 Thermal 900 | . 550 350 Explosive . | . . . Electromagnetic . | . . . Impact . | . . . Slashing . | . . . Piercing . | . . . Highest Corruption . | . . . Average Corruption . | . . . Corruption Purged . | . . . Corruption Blocked . | . . . Overload Shots . | . . . Overflow Damage . | . . . Projectiles . | . . . Explosions . | . . . Melee . | . . . Knockbacks . | . . . Impact . | . . . Kinetic . | . . . Secondary . | . . . Self-Inflicted Damage . | . . . Shots . | . . . Rammed 3 | . 3 . Targets Rammed 3 | . 3 . Kicked . | . . . Crushed . | . . . Highest Temperature 606 | . 606 . Average Temperature 183 | . 183 . Received Heat Transfer 417 | . 399 18 Effects 11 | . 11 . Shutdowns 1 | . 1 . Energy Bleed 1 | . 1 . Matter Decay 1 | . 1 . Short Circuit 1 | . 1 . Damage (minor) 1 | . 1 . Damage (major) 4 | . 4 . Damage (core) 2 | . 2 . Siege Activations . | . . . Martial Activations . | . . . Shielding Activations . | . . . Robots Disrupted . | . . . Combat Hostiles . | . . . Robots Corrupted . | . . . Combat Hostiles . | . . . Parts Fried . | . . . Impact Corruptions . | . . . Robots Melted . | . . . Combat Hostiles . | . . . Parts Melted 5 | . 4 1 Heat Transferred 2590 | . 1850 740 Parts Sabotaged . | . . . Parts Stolen . | . . . Parts Stripped . | . . . Power Chain Reactions . | . . . Alert | -11 -10 -10 ------- Run | Yrd Mat Sub Maximum Alert Level . | . . . Low Security (%) 100 | 100 100 . Level 1 . | . . . Level 2 . | . . . Level 3 . | . . . Level 4 . | . . . Level 5 . | . . . High Security . | . . . Max Security . | . . . Peak Influence 95 | . 95 . Initial . | . . . Average 10 | . 10 . Influence Increases 332 | . 332 . Destroy 0b10 Robot/C 220 | . 220 . Destroy 0b10 Robot/NC 25 | . 25 . Destroy Leader 60 | . 60 . Successful Hack 12 | . 12 . Partial Spotted 15 | . 15 . Influence Decreases 332 | . 332 . Time Decay 332 | . 332 . Squads Dispatched 1 | . 1 . Investigation 1 | . 1 . Extermination . | . . . Reinforcement . | . . . Assault . | . . . Garrison . | . . . Intercept . | . . . Searches Triggered . | . . . Construction Impeded . | . . . Haulers Reinforced . | . . . Active Scanning Responses . | . . . Cargo Convoy Interrupts . | . . . Stealth | -11 -10 -10 --------- Run | Yrd Mat Sub Distress Signals 3 | . 3 . Communications Jammed . | . . . Distress Signals . | . . . Times Spotted 25 | . 18 7 Peak Tracking Total 6 | . 6 2 Tactical Retreats . | . . . Traps | -11 -10 -10 ------- Run | Yrd Mat Sub Traps Triggered . | . . . Indirectly . | . . . Trap Hack Attempts . | . . . Triggered . | . . . Disarmed . | . . . Reprogrammed 6 | . 6 . Reused . | . . . Traps Extracted . | . . . Installed . | . . . Triggered . | . . . Machines | -11 -10 -10 ---------- Run | Yrd Mat Sub Machines Disabled . | . . . Max in Single Turn . | . . . Machines Repaired . | . . . Machines Dismantled . | . . . Machines Sabotaged . | . . . Overloaded Fab Kills . | . . . Hacking | -11 -10 -10 --------- Run | Yrd Mat Sub Machines Accessed 9 | . 9 . Terminals 8 | . 8 . Fabricators . | . . . Repair Stations 1 | . 1 . Recycling Units . | . . . Scanalyzers . | . . . Garrison Access . | . . . Total Hacks 30 | . 30 . Successful 14 | . 14 . Failed 16 | . 16 . Catastrophic . | . . . Database Lockouts . | . . . Manual 1 | . 1 . Terminals 27 | . 27 . Fabricators . | . . . Repair Stations 3 | . 3 . Recycling Units . | . . . Scanalyzers . | . . . Garrison Access . | . . . Terminal Hacks 12 | . 12 . Prototype ID Bank 4 | . 4 . Level Access Points 1 | . 1 . Emergency Access Points 2 | . 2 . Alert Level 1 | . 1 . Locate Traps 2 | . 2 . Reprogram Traps 1 | . 1 . Zone Layout 1 | . 1 . Fabricator Hacks . | . . . Repair Station Hacks 2 | . 2 . Scan Component 1 | . 1 . Repair 1 | . 1 . Recycling Unit Hacks . | . . . Scanalyzer . | . . . Garrison Access Hacks . | . . . Unauthorized Hacks . | . . . Terminals . | . . . Fabricators . | . . . Repair Stations . | . . . Recycling Units . | . . . Scanalyzers . | . . . Garrison Access . | . . . Data Cores Recovered . | . . . Used . | . . . Hacking Detections 8 | . 8 . Full Trace Events 1 | . 1 . Feedback Events . | . . . Feedback Blocked . | . . . Robot Schematics Acquired . | . . . Robots Built . | . . . Authchips . | . . . Time . | . . . Total Robot Build Rating . | . . . Part Schematics Acquired . | . . . Parts Built . | . . . Authchips . | . . . Time . | . . . Total Part Build Rating . | . . . Part Studies Acquired . | . . . Parts Repaired 1 | . 1 . Time 26 | . 26 . Parts Recycled . | . . . Recycled Matter . | . . . Retrieved Matter . | . . . Retrieved Components . | . . . Parts Scanalyzed . | . . . Part Schematics Acquired . | . . . Parts Damaged . | . . . Bothacking | -11 -10 -10 ------------ Run | Yrd Mat Sub Used RIF Installer . | . . . Robots Hacked . | . . . Non-combat . | . . . Combat . | . . . Robot Hacks Applied . | . . . Relay Couplers Released . | . . . Fabnet Peak Effective % . | . . . Robots Rewired . | . . . Allies Hacked . | . . . Hacks Repelled . | . . . Allies | -11 -10 -10 -------- Run | Yrd Mat Sub Total Allies . | . . . Largest Group . | . . . Highest-Rated Group . | . . . Highest-Rated Ally . | . . . Total Orders . | . . . Ally Attacks . | . . . Total Damage . | . . . Kills . | . . . Allies Corrupted . | . . . Allies Melted . | . . . Intel | -11 -10 -10 ------- Run | Yrd Mat Sub Active Infowar (turns) . | . . . Robot Analysis Total . | . . . Derelict Logs Recovered 2 | . . 2 Drone Launches . | . . . Drone Recoveries . | . . . Exploration | -11 -10 -10 ------------- Run | Yrd Mat Sub Turns Passed 3146 | 77 2162 907 Spaces Moved 1171 | 59 790 322 Core 21 | 21 . . Treads 1125 | 13 790 322 Legs . | . . . Wheels 25 | 25 . . Hover . | . . . Flight . | . . . Fastest Speed 50 | 50 160 240 Average Speed 230 | 95 233 247 Slowest Speed 320 | 160 320 320 Overloaded Moves . | . . . Propulsion Burnouts . | . . . Robots Hopped . | . . . Potential Cave-ins . | . . . Cave-ins Triggered . | . . . Exploration Rate (%) 43 | 5 98 27 Regions Visited 2 Branch Regions 1 Pre-discovered Areas . | . . . Known Exits Taken . | . . . Unknown Exits Taken 2 | 1 1 . Scrap Searched . | . . . Spaces Dug . | . . . Terrain Destroyed . | . . . Melee . | . . . Projectile . | . . . AOE . | . . . Terrain Rammed . | . . . Walls Destroyed . | . . . Machines Disabled . | . . . Actions | -11 -10 -10 --------- Run | Yrd Mat Sub Total 1461 | 77 1002 382 Wait 122 | 4 106 12 Move 1169 | 58 789 322 Hop . | . . . Pick Up 30 | 8 19 3 Fast Attach 5 | 4 1 . Attach 19 | 2 12 5 Detach 2 | . 1 1 Swap 3 | 1 1 1 Drop 12 | . 10 2 Fire 96 | . 60 36 Melee . | . . . Ram . | . . . Kick . | . . . Crush 3 | . 3 . Escape Stasis . | . . . Rewire . | . . . Trap . | . . . Miscellaneous . | . . . Route ------- -11/Scrapyard -10/Materials (discovered 5 exits: *Mat x3 / [*Min] / [*Sub]) -10/Subcaves (discovered 1 exit: [*Mat]) History --------- Turn | Location | Event 15 | -11/Scrapyard | Discovered new exit (range 14) 78 | -11/Scrapyard | Entered Materials 297 | -10/Materials | Core integrity fell below 50% 306 | -10/Materials | Build established: Mutant 467 | -10/Materials | Discovered new exit (range 15) 747 | -10/Materials | Repaired Lrg. Storage Unit 881 | -10/Materials | Discovered new exit (range 9) 976 | -10/Materials | Identified exit to Materials 1030 | -10/Materials | Discovered new exit (range 5) 1404 | -10/Materials | Core integrity fell below 20% 2240 | -10/Materials | Entered Subcaves 2240 | -10/Subcaves | Learned location of 1 exit from Materials 2288 | -10/Subcaves | Discovered new exit (range 16) 2636 | -10/Subcaves | Learned Materials trap positions 2797 | -10/Subcaves | Shifting Twisted Machinery released Sub. Machine Gun 2802 | -10/Subcaves | Shifting Twisted Machinery released Battle Cannon 3147 | -10/Subcaves | Destroyed by G3-RMW(R) with Subdweller Machine Gun Last Messages --------------- Sink. 02633_ UL-DHV(R) destroyed. 02636_ Acquired derelict log, extracted data. Data stored: Materials trap records. 02653_ 52-DXV(R) destroyed. 02654_ Lgt. Ion Engine destroyed. 02656_ Sub. Machine Gun shoots sparks and powers down. 02662_ Dropped Broken Sub. Machine Gun. 02679_ Lgt. Treads destroyed. 02686_ Disposable Heat Sink melted. 02686_ 7W-TWS(R) destroyed. 02692_ Acquired Battle Rifle. 02694_ Acquired 58 matter. 02697_ Subatomizers dissect the Sub. Optics. Sub. Machine Gun falls loose from the Twisted Machinery. Battle Cannon falls loose from the Twisted Machinery. Map ----- +----------------------------------------------------+ | ## ?????????????????????????????????? | | ??????????????????????????????????? | | ????????????????????????????????????? | | ## #?????????????????????????????????????? | | ## #??????????????????????????????????????? | | ##?????????????????????????????????????? | | #?????????????????????????????????????? | | #?????????????????????????????????????? | | ##?????????? ????????????????????????? | | ## #######??? ???????????????????????? | | ## #?? ???????????????????????? | | #### #?# ???????????????????????? | | #??# ### ????????????????????????? | | ???# ### ## ?????????????????????????? | | ???# ##?# ???????????????????????????? | | ???# ### ####???????????????????????????? | | ???## #??????????????????????????????? | | ????# #??????????????????????????????? | | ???## ## ##?????###??????????????????????? | | #### ##### ##????## #?????????? #??????????? | | #??## ###??## #????????? ???????????? | | #?## #### #???????? ????????????? | | ### ### #???????? #?????????????? | | ##?## ##?????? ###???????????? | | #???## ####?? "" ???????????? | | ##????## @# ## """"???????????? | | ##??????## ""#?????????????? | | ?????????###### ### "#"" #?????????????? | | ##????????????# ##?## ## R#?????????????????? | | #????????????# ##???# ## "R" #??????????????? | | #????????????###?# " ###" #??????????????? | | ##????????????????# """"" #?" "?????????????? | | #?????????????????# " "" """? "?????????????? | | #?????????????????# " "" """"" "????????????? | | ??????????????????## " """"# #"? ?????????????? | | ???????????????????##"##"#######?????????????????? | | ????????????????????##?###???????????????????????? | | ?????????????????????????????????????????????????? | | ?????????????????????????????????????????????????? | | ?????????????????????????????????????????????????? | | ?????????????????????????????????????????????????? | | ?????????????????????????????????????????????????? | | ?????????????????????????????????????????????????? | | ?????????????????????????????????????????????????? | | ?????????????????????????????????????????????????? | | ?????????????????????????????????????????????????? | | ?????????????????????????????????????????????????? | | ?????????????????????????????????????????????????? | | ?????????????????????????????????????????????????? | | ?????????????????????????????????????????????????? | +----------------------------------------------------+ Best States ------------- Heat Dissipation 25 Energy Generation 10 Energy Capacity 250 Matter Stores 300 Matter Capacity 400 Sight Range 16 Terrain Scan Density 10 Resistance: KI 20 Resistance: TH 20 Resistance: EX 20 Resistance: EM 20 Resistance: I 20 Resistance: S 20 Resistance: P 20 Evasion (%) 50 Recoil Reduction 2 Offensive Hacking 10 Item Schematics ----------------- None Robot Schematics ------------------ None Fabricated ------------ Nothing Repaired ---------- Lrg. Storage Unit | 52% | -10/Materials Studied --------- None Alien Tech Used ----------------- None Achievements -------------- For Emergencies Only I Have A Map? Challenges ------------ None Game ------ Seed DamperAlertCompressor Manual? 0 Play Time 00:21:43 Cumulative 34.4 hours Start 2025.11.26 @ 21:16:36 End 2025.11.26 @ 21:39:25 Sessions 1 Manual Loads 0 Difficulty Adventurer Special Mode None Game No. 21 Rogue 0 Adventurer 21 Explorer 0 Win Type - Total 0 Types 0/0/0/0/0/0/0/0/0/0 Lore% 17 Gallery% 24 Achievement% 16 Wizard Run 0 Options --------- Layout 1 ASCII 0 Keyboard 0 Movement Mouse Keybinds 0 Fullscreen 1 Font 24/Smallcaps Map View 50x35 Zoom Use 0% Tactical HUD 1 Map Filters NONE Filters NONE Steam 1 RUN: 809b268e-72b3-458b-ab25-7f9095648a11